[Event "81st Georgian Women-ch 2024"]
[Site "Tbilisi"]
[Date "2024.02.11"]
[Round "3.2"]
[White "Khotenashvili, Bella"]
[Black "Mgeladze, Kesaria"]
[Result "1-0"]
[ECO "A26"]
[WhiteElo "2467"]
[BlackElo "2038"]
[Annotator "RC"]
[PlyCount "78"]
[EventDate "2024.02.09"]
[EventCountry "GEO"]
[SourceTitle "playchess.com"]
[Source "ChessBase"]
[SourceQuality "1"]
[TimeControl "5400+30"]

1. g3 {[%emt 0:00:18]} g6 {[%emt 0:01:27]} 2. Bg2 {[%emt 0:00:06]} Bg7 {[%emt 0:00:06]} 3. c4 {[%emt 0:00:45]} e5 {[%emt 0:01:39]} 4. Nc3 {[%emt 0:00:32]} Nc6 {[%emt 0:02:36]} 5. Rb1 {[%emt 0:01:05]} a5 {[%emt 0:01:51]} 6. a3 {[%emt 0:00:06]} d6 {[%emt 0:01:48]} 7. b4 {[%emt 0:01:35]} axb4 {[%emt 0:01:30]} 8. axb4 {[%emt 0:00:02]} Nf6 {[%emt 0:08:59]} 9. d3 {[%emt 0:03:50]} O-O {[%emt 0:01:48]} 10. Nf3 {[%emt 0:01:16]} h6 {[%emt 0:03:11]} 11. O-O {[%emt 0:04:18]} Ne7 {[%emt 0:10:24]} 12. Bb2 {[%emt 0:09:24]} Be6 {[%emt 0:03:36]} 13. Ra1 {[%emt 0:07:36]} Qd7 {[%emt 0:08:37]} 14. Re1 {[%emt 0:00:38]} Nh5 {[%emt 0:07:41]} 15. Qc2 {[%emt 0:13:11]} f5 {[%emt 0:03:43]} 16. Nd2 {[%emt 0:02:10]} c6 {[%emt 0:01:08]} 17. Rxa8 {[%emt 0:02:04]} Rxa8 {[%emt 0:00:06]} 18. Na4 {[%emt 0:01:01]} Rf8 {[%emt 0:04:23]} 19. c5 {[%emt 0:12:04]} d5 {[%emt 0:07:48]} 20. Nb6 {[%emt 0:00:34]} Qc7 {[%emt 0:00:17]} 21. e4 {[%emt 0:01:11]} f4 {[%emt 0:06:31]} 22. exd5 {[%emt 0:10:02]} Nxd5 {[%emt 0:01:55]} 23. Ndc4 {[%emt 0:05:47]} Nxb4 {[%emt 0:06:13]} 24. Qd2 {[%emt 0:00:27]} Nd5 {[%emt 0:02:27]} 25. Bxe5 {[%emt 0:07:46]} Bxe5 {[%emt 0:00:05]} 26. Rxe5 {[%emt 0:01:24]} Nxb6 {[%emt 0:00:39]} 27. cxb6 {[%emt 0:01:04]} Qf7 {[%emt 0:00:42]} 28. Nd6 {[%emt 0:04:28]} Qf6 {[%emt 0:00:18]} 29. d4 {[%emt 0:02:33]} Bd5 {[%emt 0:04:45]} 30. Ne8 {[%emt 0:02:53]} Qf7 {[%emt 0:01:46]} 31. Nd6 {[%emt 0:01:41]} Qf6 {[%emt 0:00:08]} 32. Ne8 {[%emt 0:01:27]} Qf7 {[%emt 0:00:28]} 33. Bxd5 {[%emt 0:00:15]} cxd5 {[%emt 0:00:05]} 34. Qe2 {[%emt 0:00:14]} fxg3 {[%emt 0:02:51]} 35. hxg3 {[%emt 0:00:06]} Qd7 {[%emt 0:04:36]} 36. Nc7 {[%emt 0:01:59]} Nf6 {[%emt 0:00:45]} 37. Re7 {[%emt 0:00:50]} Qf5 {[%emt 0:01:04]} 38. Qe5 {[%emt 0:02:15]} Qb1+ {[%emt 0:00:59]} 39. Kg2 {[%emt 0:00:08]} Qxb6 {[%emt 0:01:05]} 1-0

[Event "81st Georgian Women-ch 2024"]
[Site "Tbilisi"]
[Date "2024.02.11"]
[Round "3.3"]
[White "Batsiashvili, Nino"]
[Black "Arabidze, Meri"]
[Result "1-0"]
[ECO "B28"]
[WhiteElo "2451"]
[BlackElo "2466"]
[Annotator "TA"]
[PlyCount "153"]
[EventDate "2024.02.09"]
[EventCountry "GEO"]
[SourceTitle "playchess.com"]
[Source "ChessBase"]
[SourceQuality "1"]
[TimeControl "5400+30"]

{[%evp 59,153,22,75,72,184,176,200,207,187,169,223,212,245,118,100,116,99,106,102,64,58,58,99,99,101,103,99,99,99,99,99,99,106,99,106,100,136,129,140,129,129,129,129,129,129,129,129,129,129,129,129,129,129,129,129,129,129,129,129,129,129,129,210,210,210,129,129,129,170,129,170,170,170,129,129,129,129,129,170,170,920,902,805,768,29976,29977,29977,29977,29975,29977,29972,29974,29986,29987,29994,29995]} 1. e4 {[%emt 0:00:39]} c5 {[%emt 0:00:50]} 2. Nf3 {[%emt 0:00:05]} a6 {[%emt 0:01:20]} 3. d4 {[%emt 0:00:28]} cxd4 {[%emt 0:00:20]} 4. Be2 {[%emt 0:00:04]} d6 {[%emt 0:02:41]} 5. Nxd4 {[%emt 0:01:46]} Nf6 {[%emt 0:00:56]} 6. Qd3 {[%emt 0:04:01]} Nbd7 {[%emt 0:05:19]} 7. Nd2 {[%emt 0:00:36]} g6 {[%emt 0:06:31]} 8. c4 {[%emt 0:06:07]} Bg7 {[%emt 0:07:03]} 9. h3 {[%emt 0:03:38]} Nc5 {[%emt 0:03:17]} 10. Qe3 {[%emt 0:00:10]} e5 {[%emt 0:02:45]} 11. Nc2 {[%emt 0:04:55]} O-O {[%emt 0:01:43]} 12. O-O {[%emt 0:04:07]} Rb8 {[%emt 0:13:00]} 13. Bf3 {[%emt 0:07:03]} Bd7 {[%emt 0:03:38]} 14. b3 {[%emt 0:04:12]} Qe7 {[%emt 0:05:20]} 15. Ba3 {[%emt 0:00:50]} b6 {[%emt 0:03:47]} 16. Nb1 {[%emt 0:08:26]} Bc6 {[%emt 0:05:27]} 17. Nc3 {[%emt 0:00:10]} a5 {[%emt 0:00:22]} 18. Rad1 {[%emt 0:04:56]} Rbd8 {[%emt 0:02:17]} 19. Rfe1 {[%emt 0:11:55]} Qb7 {[%emt 0:03:16]} 20. Bb2 {[%emt 0:02:16]} Ne8 {[%emt 0:02:29]} 21. Nd5 {[%emt 0:02:02]} Kh8 {[%emt 0:03:56]} 22. a3 {[%emt 0:05:23]} b5 {[%emt 0:03:54]} 23. cxb5 {[%emt 0:00:52]} Bxb5 {[%emt 0:00:28]} 24. b4 {[%emt 0:01:56]} Na4 {[%emt 0:03:50]} 25. Qb3 {[%emt 0:02:56]} Nxb2 {[%emt 0:05:18]} 26. Qxb2 {[%emt 0:00:01]} Ba4 {[%emt 0:00:41]} 27. Rc1 {[%emt 0:02:02]} axb4 {[%emt 0:02:35]} 28. axb4 {[%emt 0:01:18]} Nc7 {[%emt 0:02:36]} 29. Nxc7 {[%emt 0:04:10]} Qxc7 {[%emt 0:00:01]} 30. Na3 {[%emt 0:00:54]} Qb6 {[%emt 0:02:07]} (30... Qe7 $1 $11 {keeps the balance.}) 31. b5 $1 $16 {[%emt 0:00:13]} d5 {[%emt 0:00:36]} (31... Qd4 $16 32. Qa2 Rc8) 32. Rc6 $1 $18 {[%emt 0:03:03]} ({Weaker is} 32. exd5 e4 33. Qb4 exf3 $11) 32... Qd4 {[%emt 0:00:42]} 33. Qxd4 {[%emt 0:01:26]} exd4 {[%emt 0:00:04]} 34. exd5 {[%emt 0:00:04]} d3 {[%emt 0:01:11]} (34... Bb3 {was worth a try.} 35. d6 Bh6) 35. Rb1 $1 $18 {[%emt 0:03:39]} Rfe8 {[%emt 0:05:10]} 36. Ra6 {[%emt 0:02:03]} (36. Rc4 $1 $18 {[%cal Rc4a4] and the rest is easy.} d2 37. Rxa4 Re1+ 38. Kh2) 36... Bc2 $16 {[%emt 0:02:17]} 37. Nxc2 {[%emt 0:02:06]} dxc2 {[%emt 0:00:01]} 38. Rc1 {[%emt 0:00:00]} Rb8 {[%emt 0:00:08]} ({Wrong is} 38... Rc8 $2 39. Rc6 $18) 39. Rxc2 {[%emt 0:00:29]} Rxb5 {[%emt 0:00:11]} 40. g3 {[%emt 0:00:00]} Rb2 {[%emt 0:00:00]} 41. Rxb2 {[%emt 0:00:00]} Bxb2 {[%emt 0:00:00]} 42. Ra7 $1 {[%emt 0:00:00]} Kg7 {[%emt 0:00:00]} 43. d6 {[%emt 0:00:00]} Re6 {[%emt 0:00:00]} 44. d7 {[%emt 0:00:00]} Rd6 {[%emt 0:00:00]} 45. Bc6 {[%emt 0:00:00]} Bf6 {[%emt 0:00:00]} 46. Rc7 {[%emt 0:00:00]} h5 {[%emt 0:00:00]} 47. Rc8 {[%emt 0:00:00]} h4 {[%emt 0:00:00] [#]} 48. g4 $1 {[%emt 0:00:00]} g5 {[%emt 0:00:00]} 49. Kf1 {[%emt 0:00:00]} Be7 {[%emt 0:00:00]} 50. Ke2 {[%emt 0:00:00]} f5 {[%emt 0:00:00]} 51. gxf5 {[%emt 0:00:00]} Kf6 {[%emt 0:00:00]} 52. Ke3 {[%emt 0:00:00]} Kxf5 {[%emt 0:00:00]} 53. Bf3 {[%emt 0:00:00]} Kf6 {[%emt 0:00:00]} 54. Bg4 {[%emt 0:00:00]} Kf7 {[%emt 0:00:00]} 55. Re8 {[%emt 0:00:00]} Bf6 {[%emt 0:00:00]} 56. Bf5 {[%emt 0:00:00]} Be7 {[%emt 0:00:00]} 57. Ke4 {[%emt 0:00:00]} Bf6 {[%emt 0:00:00]} 58. Kf3 {[%emt 0:00:00]} Be7 {[%emt 0:00:34]} 59. Rh8 {[%emt 0:00:48]} Kg7 {[%emt 0:00:24]} 60. Rh7+ {[%emt 0:01:11]} Kf6 {[%emt 0:00:03]} (60... Kf8 $16 61. Kg4 Bf6) 61. Ke4 $18 {[%emt 0:01:06]} Rd2 {[%emt 0:01:30]} 62. Rh8 {[%emt 0:02:34]} Kg7 {[%emt 0:02:38]} 63. Rc8 {[%emt 0:00:19]} Kf7 {[%emt 0:00:41]} 64. Re8 {[%emt 0:03:43]} Kf6 {[%emt 0:01:13]} 65. Bg4 {[%emt 0:01:00]} Kf7 {[%emt 0:00:56]} 66. f3 {[%emt 0:02:37]} Kf6 {[%emt 0:00:54]} 67. Rc8 {[%emt 0:00:39]} Kf7 {[%emt 0:03:16]} 68. Rc7 {[%emt 0:00:16]} Kf6 {[%emt 0:01:29]} 69. Rc6+ {[%emt 0:00:10]} Kf7 $2 {[%emt 0:00:17] [#]} (69... Kg7 70. Ke3 Rd1) 70. Be6+ $1 $18 {[%emt 0:00:15]} Kg7 {[%emt 0:00:21]} 71. Bd5 {[%emt 0:01:05]} Re2+ {[%emt 0:03:01]} 72. Kf5 {[%emt 0:00:16]} Rd2 {[%emt 0:00:11]} 73. Ke6 {[%emt 0:00:27]} Bf6 {[%emt 0:00:17]} 74. Rc7 {[%emt 0:00:49]} Bd8 {[%emt 0:01:06]} 75. Rc8 {[%emt 0:00:05]} Re2+ {[%emt 0:00:29]} 76. Kf5 {[%emt 0:01:31]} g4 {[%emt 0:00:32]} 77. Rxd8 {[%emt 0:00:13]} 1-0

[Event "81st Georgian Women-ch 2024"]
[Site "Tbilisi"]
[Date "2024.02.11"]
[Round "3.4"]
[White "Tsetskhladze, Mariam"]
[Black "Javakhishvili, Lela"]
[Result "1/2-1/2"]
[ECO "B06"]
[WhiteElo "1912"]
[BlackElo "2433"]
[Annotator "TA"]
[PlyCount "95"]
[EventDate "2024.02.09"]
[EventCountry "GEO"]
[SourceTitle "playchess.com"]
[Source "ChessBase"]
[SourceQuality "1"]
[TimeControl "5400+30"]

{[%evp 12,95,27,0,0,-6,11,9,1,-12,-14,-16,-22,-93,-20,-14,-11,-19,-17,-18,-6,-9,0,-34,-40,-39,-38,-46,-26,-37,-27,-47,-19,-50,0,-28,-12,-26,-8,-41,0,0,28,33,68,-4,70,75,57,66,593,222,540,460,387,-164,-128,-291,-221,-290,328,354,500,284,284,284,284,284,284,284,365,284,284,284,284,119,119,119,119,102,104,79,79,0,108,0]} 1. e4 {[%emt 0:00:04]} g6 {[%emt 0:00:17]} 2. d4 {[%emt 0:00:20]} Bg7 {[%emt 0:00:07]} 3. g3 {[%emt 0:01:07]} d6 {[%emt 0:02:05]} 4. Bg2 {[%emt 0:00:19]} Nf6 {[%emt 0:02:28]} 5. Ne2 {[%emt 0:04:18]} O-O {[%emt 0:00:15]} 6. O-O {[%emt 0:00:13]} e5 {[%emt 0:05:00]} 7. c3 {[%emt 0:21:59]} Nbd7 {[%emt 0:04:58]} 8. h3 {[%emt 0:07:58]} Qe7 {[%emt 0:04:46]} 9. Qc2 {[%emt 0:06:09]} c6 {[%emt 0:04:19] The position is equal.} 10. a4 {[%emt 0:02:43]} Re8 {[%emt 0:02:06]} 11. Nd2 {[%emt 0:04:48]} d5 {[%emt 0:08:48]} 12. f4 {[%emt 0:09:32]} (12. exd5 $11 Nxd5 13. a5) 12... Nxe4 {[%emt 0:26:40]} ({Black should play} 12... exd4 $17 {aiming for ...d3.} 13. e5 Nxe5 (13... dxc3 14. bxc3 Nxe5 15. fxe5 $11) 14. fxe5 Qxe5 15. Nxd4 Qxg3) 13. fxe5 $11 {[%emt 0:07:24]} Nxd2 {[%emt 0:01:58]} 14. Bxd2 {[%emt 0:01:02]} f6 {[%emt 0:00:11]} 15. exf6 {[%emt 0:04:39]} Nxf6 {[%emt 0:00:06]} 16. Rae1 {[%emt 0:02:49]} Bf5 {[%emt 0:01:31]} 17. Qc1 {[%emt 0:05:12]} Qd7 {[%emt 0:00:45]} 18. Nf4 {[%emt 0:06:27]} h5 {[%emt 0:12:50]} 19. h4 {[%emt 0:12:57]} Ne4 {[%emt 0:00:29]} 20. Kh2 {[%emt 0:00:00]} b6 {[%emt 0:04:58]} 21. Be3 {[%emt 0:00:00]} Nf6 {[%emt 0:00:53]} 22. Bf3 {[%emt 0:00:00]} a5 {[%emt 0:01:57]} (22... Re7 $15) 23. Bd2 {[%emt 0:00:26]} Rf8 {[%emt 0:01:22]} 24. Qd1 {[%emt 0:00:46]} Rac8 {[%emt 0:01:41]} 25. Qb3 {[%emt 0:00:29][%cal Oc3c4]} Rb8 {[%emt 0:03:27]} 26. c4 {[%emt 0:00:51]} Rfd8 {[%emt 0:03:45]} 27. cxd5 {[%emt 0:00:36]} cxd5 {[%emt 0:00:02]} 28. Re5 {[%emt 0:00:47]} (28. Bxd5+ $14 Nxd5 29. Nxd5) 28... Qf7 {[%emt 0:02:19]} (28... Kh8 $11) 29. Nxd5 $14 {[%emt 0:00:29] White has more active pieces.} (29. Bxd5 Rxd5 30. Nxd5 Ng4+ 31. Kg1 Nxe5 32. dxe5 Kh8 $19 (32... Rd8 33. Ne7+ Kf8 34. Nxf5 $16)) 29... Kh8 {[%emt 0:00:34]} (29... Ng4+ 30. Bxg4 Bxe5 31. Ne7+ Kf8 32. Nxg6+ Bxg6 33. Rxf7+ Bxf7 34. Be6 $18) 30. Re7 $36 {[%emt 0:00:30][%mdl 2048] White has the initiative.} Qg8 {[%emt 0:00:36][%mdl 8192] [#] Black is weak on the dark squares} (30... Qf8 $14) 31. Bf4 $2 {[%emt 0:00:32]} (31. Bh6 Ne8 (31... Bxh6 $2 32. Nxf6 $18) 32. Qe3) 31... Rbc8 $2 {[%emt 0:03:09]} (31... Nxd5 {is more resistant.} 32. Bxd5 Qxd5 33. Qxd5 Rxd5 34. Bxb8 Rxd4) 32. Be5 {[%emt 0:00:05]} Rc6 {[%emt 0:01:19]} 33. Qe3 $4 {[%emt 0:00:47][%mdl 8192]} (33. Qb5 $18 Rc2+ 34. Kg1 Rxd5 35. Bxd5 Qxd5 36. Qxd5 (36. Qxb6 $2 Qg2#) 36... Nxd5 37. Rxg7 (37. Bxg7+ Kg8 $18)) 33... Rxd5 $19 {[%emt 0:00:37]} (33... Nxd5 34. Bxd5 (34. Rxg7 Nxe3 35. Rd7+ Qg7 $18) 34... g5 35. Bxg8 (35. Bxc6 Qh7 36. Bxg7+ Qxg7 37. Rxg7 Kxg7 38. Qe7+ Kh6 39. Qxg5+ Kh7 40. Qxf5+ Kg8 41. Be4 Rxd4 42. Qh7#) 35... Rf8 36. Rxg7 (36. Bxg7+ Kxg8 37. Qb3+ Re6 38. Rxf5 Rxf5 39. Qxe6+ Rf7 40. Qxf7+ Kh7 41. Qxh5+ Kg8 42. Qh8#) 36... Rc2+ 37. Rf2 Rxf2+ 38. Qxf2 Rxg8 39. Qxf5 (39. Rxg5+ Rg7 40. Bxg7+ Kg8 41. Qxf5 b5 42. Be5#) 39... Rxg7 40. Qf8+ Kh7 41. Qxg7#) 34. Bxf6 $2 {[%emt 0:00:36]} (34. Bxd5 $17 Qxd5 35. Kg1) 34... Rxf6 {[%emt 0:00:16]} 35. Re8 {[%emt 0:00:27]} Rd8 $4 {[%emt 0:00:51][%mdl 8192]} (35... Rf8 $1 $19 {[%cal Rf8e8] and life is good for Black.} 36. Rxf8 Bxf8 37. Bxd5 Qxd5) 36. Rxg8+ $18 {[%emt 0:00:11]} Kxg8 {[%emt 0:00:11]} (36... Rxg8 $142 37. d5 Rgf8) 37. d5 {[%emt 0:00:26]} Bg4 {[%emt 0:00:26]} 38. Bg2 {[%emt 0:01:32] [#] Rxf6 is the strong threat.} Rxf1 {[%emt 0:00:36]} 39. Bxf1 {[%emt 0:00:00]} Rd6 {[%emt 0:00:25]} 40. b3 {[%emt 0:00:00]} Kh7 {[%emt 0:00:00]} 41. Bg2 {[%emt 0:00:00]} Bf8 {[%emt 0:00:00] Prevents Qe7+} 42. Qe5 {[%emt 0:00:00]} Kg8 {[%emt 0:00:00]} 43. Be4 {[%emt 0:00:00]} (43. Bh3 $18 {And now Bxg4 would win.} Bxh3 44. Kxh3) 43... Kf7 $16 {[%emt 0:00:00]} 44. Kg2 {[%emt 0:00:00]} Rf6 {[%emt 0:00:00] Prevents Bf3} 45. Qc7+ {[%emt 0:00:00]} Kg8 {[%emt 0:00:00]} 46. Qd8 {[%emt 0:00:00]} Kg7 {[%emt 0:00:00]} 47. Qc7+ {[%emt 0:00:00]} Kg8 {[%emt 0:00:00]} 48. Qd8 {[%emt 0:00:00] Weighted Error Value: White=0.65/Black=0.47.  Loses game:     	White=1     	Black=1      Missed win:     	White=2     	Black=1      Mistake:       	White=4     	Black=5      Inaccurate:     	White=6     	Black=4      OK:         	White=12    	Black=12     Best:        	---       	Black=5} (48. Qc3 $16 Be7 49. d6 Rxd6 50. Bf3) 1/2-1/2

[Event "81st Georgian Women-ch 2024"]
[Site "Tbilisi"]
[Date "2024.02.11"]
[Round "3.5"]
[White "Kirtadze, Anastasia"]
[Black "Lomaia, Diana"]
[Result "1-0"]
[ECO "B48"]
[WhiteElo "1981"]
[BlackElo "2037"]
[Annotator "NA RC"]
[PlyCount "113"]
[EventDate "2024.02.09"]
[EventCountry "GEO"]
[SourceTitle "playchess.com"]
[Source "ChessBase"]
[SourceQuality "1"]
[TimeControl "5400+30"]

1. e4 {[%emt 0:02:26]} c5 {[%emt 0:00:09]} 2. Nf3 {[%emt 0:00:22]} e6 {[%emt 0:00:06]} 3. d4 {[%emt 0:00:16]} cxd4 {[%emt 0:00:05]} 4. Nxd4 {[%emt 0:00:03]} Nc6 {[%emt 0:00:05]} 5. Nc3 {[%emt 0:00:04]} Qc7 {[%emt 0:00:16]} 6. Be3 {[%emt 0:00:47]} a6 {[%emt 0:00:05]} 7. Qd2 {[%emt 0:00:24]} Nf6 {[%emt 0:00:30]} 8. f3 {[%emt 0:03:24]} Be7 {[%emt 0:00:34]} 9. g4 {[%emt 0:01:06]} b5 {[%emt 0:02:47]} 10. O-O-O {[%emt 0:11:26]} O-O {[%emt 0:01:01]} 11. h4 {[%emt 0:05:41]} Ne5 {[%emt 0:15:42]} 12. Qh2 {[%emt 0:19:29]} Bd6 {[%emt 0:14:06]} 13. Qg2 {[%emt 0:01:57]} Bb4 {[%emt 0:04:18]} 14. Nb1 {[%emt 0:01:39]} Nc4 {[%emt 0:10:09]} 15. Bxc4 {[%emt 0:03:53]} bxc4 {[%emt 0:01:14]} 16. c3 {[%emt 0:00:54]} Bd6 {[%emt 0:01:23]} 17. h5 {[%emt 0:02:03]} Bf4 {[%emt 0:01:48]} 18. Qd2 {[%emt 0:00:14]} Bxe3 {[%emt 0:01:47]} 19. Qxe3 {[%emt 0:00:08]} Rb8 {[%emt 0:07:41]} 20. g5 {[%emt 0:02:57]} Ne8 {[%emt 0:02:13]} 21. Rdg1 {[%emt 0:02:16]} Qb6 {[%emt 0:02:48]} 22. Rg2 {[%emt 0:05:36]} Qc7 {[%emt 0:25:01]} 23. g6 {[%emt 0:11:39]} fxg6 {[%emt 0:00:47]} 24. hxg6 {[%emt 0:00:05]} hxg6 {[%emt 0:00:17]} 25. e5 {[%emt 0:00:45]} d6 {[%emt 0:01:19]} 26. Qg5 {[%emt 0:13:15]} Qf7 {[%emt 0:06:23]} 27. Nc6 {[%emt 0:01:56]} Rb7 {[%emt 0:00:00]} 28. Nd8 {[%emt 0:01:26]} Qf4+ {[%emt 0:00:12]} 29. Qxf4 {[%emt 0:00:54]} Rxf4 {[%emt 0:00:01]} 30. Nxb7 {[%emt 0:02:27]} Bxb7 {[%emt 0:00:01]} 31. Rxg6 {[%emt 0:00:51]} Kf7 {[%emt 0:00:18]} 32. exd6 {[%emt 0:02:30]} Nxd6 {[%emt 0:00:19]} 33. Rhg1 {[%emt 0:00:10]} Nf5 {[%emt 0:02:30]} 34. R6g4 {[%emt 0:00:59]} Rxf3 {[%emt 0:00:50]} 35. Rxc4 {[%emt 0:00:07]} Kf6 {[%emt 0:00:22]} 36. Nd2 {[%emt 0:00:57]} Re3 {[%emt 0:00:29]} 37. Rcg4 {[%emt 0:00:34]} Bd5 {[%emt 0:00:37]} 38. c4 {[%emt 0:00:14]} Bc6 {[%emt 0:00:05]} 39. c5 {[%emt 0:01:21]} Re5 {[%emt 0:01:00]} 40. b4 {[%emt 0:00:00]} Re2 {[%emt 0:00:00]} 41. a3 {[%emt 0:00:00]} Ba4 {[%emt 0:00:00]} 42. Re4 {[%emt 0:00:00]} Ne3 {[%emt 0:00:00]} 43. Rd4 {[%emt 0:00:00]} g5 {[%emt 0:00:00]} 44. Rd6 {[%emt 0:00:00]} Nf5 {[%emt 0:01:22]} 45. Rxa6 {[%emt 0:00:00]} Bb5 {[%emt 0:00:01]} 46. Ra7 {[%emt 0:00:00]} Nd4 {[%emt 0:01:40]} 47. a4 {[%emt 0:00:00]} Bd3 {[%emt 0:00:50]} 48. Rg3 {[%emt 0:01:58]} Bf5 {[%emt 0:00:31]} 49. Rd7 {[%emt 0:02:19]} Nc6 {[%emt 0:00:36]} 50. b5 {[%emt 0:00:35]} Ne5 {[%emt 0:00:01]} 51. Rd6 {[%emt 0:00:55]} Ke7 {[%emt 0:00:58]} 52. b6 {[%emt 0:00:29]} Re1+ {[%emt 0:00:38]} 53. Kb2 {[%emt 0:00:06]} Nd7 {[%emt 0:00:11]} 54. Rxd7+ {[%emt 0:01:27]} Kxd7 {[%emt 0:00:02]} 55. b7 {[%emt 0:00:10]} Kc7 {[%emt 0:00:04]} 56. Rb3 {[%emt 0:00:03]} Kb8 {[%emt 0:00:28]} 57. c6 {[%emt 0:00:15]} 1-0

[Event "81st Georgian Women-ch 2024"]
[Site "Tbilisi"]
[Date "2024.02.12"]
[Round "4.1"]
[White "Melia, Salome"]
[Black "Lomaia, Diana"]
[Result "1/2-1/2"]
[ECO "B22"]
[WhiteElo "2355"]
[BlackElo "2037"]
[Annotator "RC"]
[PlyCount "88"]
[EventDate "2024.02.08"]
[EventType "tourn"]
[EventCountry "GEO"]
[SourceTitle "playchess.com"]
[Source "ChessBase"]
[SourceQuality "1"]
[TimeControl "40/5400+30:1800+30"]

1. e4 {[%emt 0:00:03]} c5 {[%emt 0:00:05]} 2. Nf3 {[%emt 0:00:04]} g6 {[%emt 0:00:05]} 3. c3 {[%emt 0:03:08]} d5 {[%emt 0:01:04]} 4. e5 {[%emt 0:00:41]} Nc6 {[%emt 0:00:57]} 5. d4 {[%emt 0:00:06]} cxd4 {[%emt 0:00:56]} 6. cxd4 {[%emt 0:00:07]} Bg4 {[%emt 0:00:37]} 7. Bb5 {[%emt 0:00:22]} Rc8 {[%emt 0:01:12]} 8. h3 {[%emt 0:03:25]} Bxf3 {[%emt 0:06:05]} 9. Qxf3 {[%emt 0:00:08]} e6 {[%emt 0:01:03]} 10. Nc3 {[%emt 0:06:22]} a6 {[%emt 0:04:25]} 11. Bxc6+ {[%emt 0:00:43]} Rxc6 {[%emt 0:03:51]} 12. O-O {[%emt 0:00:10]} h5 {[%emt 0:13:44]} 13. Be3 {[%emt 0:03:39]} Nh6 {[%emt 0:02:04]} 14. Rac1 {[%emt 0:00:56]} Nf5 {[%emt 0:03:13]} 15. Na4 {[%emt 0:03:31]} Rxc1 {[%emt 0:10:06]} 16. Rxc1 {[%emt 0:00:13]} Be7 {[%emt 0:01:19]} 17. Nc5 {[%emt 0:01:58]} Bxc5 {[%emt 0:05:09]} 18. Rxc5 {[%emt 0:14:27]} O-O {[%emt 0:09:30]} 19. Qd1 {[%emt 0:23:04]} Nxe3 {[%emt 0:04:36]} 20. fxe3 {[%emt 0:00:09]} Qg5 {[%emt 0:02:14]} 21. Qf3 {[%emt 0:07:48]} Qh4 {[%emt 0:09:02]} 22. Kh2 {[%emt 0:03:24]} Qe1 {[%emt 0:03:59]} 23. Rc2 {[%emt 0:10:29]} Qb1 {[%emt 0:02:02]} 24. Rf2 {[%emt 0:02:51]} Qxa2 {[%emt 0:00:43]} 25. g4 {[%emt 0:00:24]} hxg4 {[%emt 0:02:17]} 26. hxg4 {[%emt 0:00:23]} Qb1 {[%emt 0:01:16]} 27. Kg3 {[%emt 0:00:59]} b5 {[%emt 0:06:34]} 28. Rf1 {[%emt 0:02:17]} Qd3 {[%emt 0:04:05]} 29. Qf4 {[%emt 0:03:10]} Qe4 {[%emt 0:01:23]} 30. Qh6 {[%emt 0:07:09]} g5 {[%emt 0:00:28]} 31. Qxg5+ {[%emt 0:00:52]} Qg6 {[%emt 0:00:06]} 32. Qxg6+ {[%emt 0:02:27]} fxg6 {[%emt 0:00:01]} 33. Ra1 {[%emt 0:00:10]} Ra8 {[%emt 0:01:15]} 34. b4 {[%emt 0:00:52]} g5 {[%emt 0:00:27]} 35. Rc1 {[%emt 0:00:38]} Ra7 {[%emt 0:00:30]} 36. Rc6 {[%emt 0:00:23]} Kf7 {[%emt 0:00:07]} 37. Kf3 {[%emt 0:00:31]} a5 {[%emt 0:01:34]} 38. bxa5 {[%emt 0:00:10]} Rxa5 {[%emt 0:00:14]} 39. Rc7+ {[%emt 0:01:11]} Kf8 {[%emt 0:00:50]} 40. Rb7 {[%emt 0:00:00]} Kg8 {[%emt 0:00:00]} 41. Re7 {[%emt 0:06:22]} Ra6 {[%emt 0:01:15]} 42. Rb7 {[%emt 0:01:13]} Ra5 {[%emt 0:00:49]} 43. Re7 {[%emt 0:00:27]} Ra6 {[%emt 0:00:25]} 44. Rb7 {[%emt 0:00:07]} Ra5 {[%emt 0:30:53]} 1/2-1/2

[Event "81st Georgian Women-ch 2024"]
[Site "Tbilisi"]
[Date "2024.02.12"]
[Round "4.2"]
[White "Javakhishvili, Lela"]
[Black "Kirtadze, Anastasia"]
[Result "1-0"]
[ECO "D34"]
[WhiteElo "2433"]
[BlackElo "1981"]
[Annotator "TA"]
[PlyCount "49"]
[EventDate "2024.02.08"]
[EventType "tourn"]
[EventCountry "GEO"]
[SourceTitle "playchess.com"]
[Source "ChessBase"]
[SourceQuality "1"]
[TimeControl "40/5400+30:1800+30"]

{[%evp 19,49,39,59,50,64,56,67,67,60,68,69,56,109,61,166,178,235,229,228,231,516,512,578,576,708,703,1357,6303,1814,719,29990,29991]} 1. d4 {[%emt 0:00:03]} Nf6 {[%emt 0:03:58]} 2. g3 {[%emt 0:00:17]} e6 {[%emt 0:02:14]} 3. Bg2 {[%emt 0:00:09]} c5 {[%emt 0:02:22]} 4. Nf3 {[%emt 0:00:14]} Nc6 {[%emt 0:02:03]} 5. O-O {[%emt 0:00:33]} Be7 {[%emt 0:06:55]} 6. c4 {[%emt 0:01:30]} cxd4 {[%emt 0:04:37]} 7. Nxd4 {[%emt 0:00:08]} d5 {[%emt 0:00:13]} 8. Nc3 {[%emt 0:06:06]} O-O {[%emt 0:01:33]} 9. cxd5 {[%emt 0:00:27]} exd5 {[%emt 0:01:17]} 10. Be3 {[%emt 0:10:34]} Be6 {[%emt 0:04:17]} 11. Rc1 {[%emt 0:03:53]} Ng4 {[%emt 0:11:47]} 12. Bf4 {[%emt 0:04:27]} g5 {[%emt 0:12:50]} 13. Nxe6 {[%emt 0:05:35] White is slightly better.} fxe6 {[%emt 0:00:31]} 14. Bd2 {[%emt 0:03:05] This pair of bishops is nice.} Nge5 {[%emt 0:03:59]} 15. Na4 {[%emt 0:04:19]} Nc4 {[%emt 0:06:11]} ({Better is} 15... Rc8 $14) 16. Be1 {[%emt 0:03:52]} ({White should play} 16. Bh3 $16) 16... Bf6 {[%emt 0:03:58] [#]} (16... N4e5 $14) 17. e4 $1 $18 {[%emt 0:04:46][%cal Re4d5]} Nxb2 {[%emt 0:06:51]} (17... Nb6 {might work better.} 18. Nc5 (18. Nxb6 Qxb6 19. exd5 Rad8 $18) 18... dxe4) 18. Nxb2 {[%emt 0:00:15]} Bxb2 {[%emt 0:00:04]} 19. Rb1 {[%emt 0:00:19]} Bd4 {[%emt 0:06:12]} (19... Bg7 20. exd5 (20. Rxb7 d4 $18) 20... exd5 21. Rxb7 (21. Qxd5+ Kh8 $18) (21. Bxd5+ Kh8 $18) 21... Kh8 22. Qxd5 (22. Bxd5 Qf6 $18) 22... Qxd5 23. Bxd5 Rac8) 20. exd5 {[%emt 0:03:06]} exd5 {[%emt 0:00:20]} 21. Rxb7 {[%emt 0:00:13]} Kh8 {[%emt 0:08:14]} 22. Qh5 {[%emt 0:06:22][%csl Gb7][%cal Rh5h7]} Bg7 {[%emt 0:00:24] [#]} 23. Bc3 $1 {[%emt 0:01:25][%mdl 512]} Rg8 {[%emt 0:04:05] [#]} (23... d4 24. Be4) 24. Rd1 $1 {[%emt 0:09:36]} Ne7 {[%emt 0:03:55]} (24... Qe8 25. Rxg7) 25. Be4 {[%emt 0:01:29] Black did not feel at home in the position after the opening.   Weighted Error Value: White=0.10 (very precise) /Black=1.12.  Mistake:       	White=1     	Black=4      Inaccurate:     	---       	Black=1      OK:         	White=6     	Black=1      Best:        	White=1     	---} 1-0